bitfinex-derivatives/quotes_ETHF0:USTF0_20250308
["timestamp","ask_amount","ask_price","bid_price","bid_amount"]
[1741400208523,3.2078,2139.4,2139.0,2.77917]
[1741400208823,0.93519,2139.2,2139.0,2.77917]
[1741400209324,0.00701246,2139.3,2139.0,1.8439]
[1741400209521,0.93521,2139.2,2139.0,1.8439]
[1741400209721,0.93521,2139.2,2139.0,2.77917]
[1741400209919,0.67791246,2139.3,2139.0,2.77917]
[1741400210218,0.00701246,2139.3,2139.2,0.93519]
[1741400210428,3.8503,2139.9,2139.2,0.02]
[1741400210618,3.8503,2139.9,2139.4,0.93507]
[1741400210816,3.8503,2139.9,2139.3,2.282]
[1741400211020,0.93486,2140.0,2139.7,0.93495]
[1741400211623,0.93487,2140.0,2139.8,0.6486]
[1741400211826,4.5068,2140.2,2139.8,0.6486]
[1741400212227,0.93484,2140.0,2139.8,0.6486]
[1741400212420,4.5068,2140.2,2139.5,0.6487]
[1741400212621,4.5068,2140.2,2139.5,2.23231]
[1741400212828,0.93494,2139.8,2139.5,2.23231]
[1741400213232,0.93494,2139.8,2139.4,3.8474]
[1741400213233,0.93505,2139.6,2139.3,3.21713]
[1741400214321,0.6165,2139.7,2139.2,3.5561]
[1741400214520,3.2078,2139.6,2139.1,3.2078]
[1741400214725,0.93526,2139.1,2138.9,19.09501246]
[1741400215132,1.2854,2139.2,2138.9,19.09501246]
[1741400215430,0.93527,2139.0,2138.9,0.00701246]
[1741400215626,4.14307,2139.0,2138.9,0.00701246]
[1741400219226,0.93545,2138.6,2138.5,3.2078]
[1741400219625,0.9356,2138.3,2138.1,13.66462291]
[1741400219822,0.93562,2138.2,2138.1,2.282]
[1741400221332,0.93571,2138.0,2137.9,0.00701246]
[1741400222042,3.2078,2138.3,2137.9,0.00701246]
[1741400222222,0.00701246,2138.4,2137.9,0.04701246]
[1741400222424,0.00701246,2138.4,2138.3,0.93558]
[1741400223035,0.00701246,2138.4,2138.3,1.60418]
[1741400223334,0.00701246,2138.4,2138.0,2.9033]
[1741400223533,0.93564,2138.2,2138.0,2.9033]
[1741400223736,0.93561,2138.3,2138.0,3.839]
[1741400224132,0.93561,2138.3,2138.1,0.93566]
[1741400224444,0.93561,2138.3,2138.0,3.83898]
[1741400224830,0.93565,2138.2,2138.0,2.9033]
[1741400225137,0.93562,2138.3,2138.0,0.93569]
[1741400225435,0.93565,2138.2,2137.9,2.25685246]
[1741400225634,0.93561,2138.3,2138.0,0.93569]
[1741400226531,0.00701246,2138.4,2138.1,3.2078]
[1741400226733,0.00701246,2138.4,2138.3,0.93558]
[1741400227139,0.94255246,2138.4,2138.3,0.6631]
[1741400227440,0.00701246,2138.4,2138.3,1.59868]
[1741400229747,0.00701246,2138.4,2137.9,1.32111246]
[1741400230042,0.93571,2138.0,2137.9,0.22701246]
[1741400230242,3.2078,2138.3,2137.9,0.22701246]
[1741400230243,4.4931,2138.3,2137.9,0.00701246]
[1741400230447,0.93564,2138.2,2137.9,0.00701246]
[1741400230747,0.93564,2138.2,2137.9,0.94274246]
[1741400231151,0.93564,2138.2,2138.0,0.9357]
[1741400231341,0.93564,2138.2,2137.9,0.94274246]
[1741400231845,0.93564,2138.2,2137.9,0.00701246]
[1741400232041,0.93564,2138.2,2138.0,0.93571]
[1741400232247,0.93565,2138.2,2138.0,0.6155]
[1741400232545,5.42869,2138.3,2138.1,0.93564]
[1741400233542,5.42869,2138.3,2138.0,1.2301]
[1741400233748,5.42869,2138.3,2138.1,0.93567]
[1741400233946,0.00701246,2138.4,2138.0,1.2301]
[1741400233947,0.00701246,2138.4,2138.3,0.93558]
[1741400234245,0.00701246,2138.4,2138.0,3.5121]
[1741400234448,0.00701246,2138.4,2138.2,0.9356]
[1741400234449,0.94256246,2138.4,2138.2,0.9356]
[1741400234647,0.00701246,2138.4,2138.0,3.5121]
[1741400234848,0.00701246,2138.4,2138.0,3.5921]
[1741400235044,0.94255246,2138.4,2138.2,0.9356]
[1741400235450,0.00701246,2138.4,2138.2,0.9356]
[1741400235650,0.00701246,2138.4,2138.0,3.86739603]
[1741400235944,0.00701246,2138.4,2138.3,0.93558]
[1741400236150,0.00701246,2138.4,2138.2,0.93559]
[1741400236549,0.00701246,2138.4,2138.3,0.93558]
[1741400237144,0.00701246,2138.4,2138.2,0.93562]
[1741400237447,0.00701246,2138.4,2138.3,0.93558]
[1741400238146,0.00701246,2138.4,2138.2,0.9356]
[1741400238951,0.00701246,2138.4,2138.3,0.93558]
[1741400239247,0.00701246,2138.4,2138.0,2.16579]
[1741400239248,0.93564,2138.2,2138.0,2.16579]
[1741400239449,0.93564,2138.2,2138.0,1.2301]
[1741400239850,0.6189,2138.3,2138.0,1.2301]
[1741400240042,3.8267,2138.3,2137.9,1.58534246]
[1741400240255,0.6189,2138.3,2137.9,0.64961246]
[1741400240445,1.55327246,2138.4,2138.2,0.9356]
[1741400241153,1.55327246,2138.4,2138.2,0.93562]
[1741400241354,1.55327246,2138.4,2138.1,1.55123]
[1741400241546,0.9356,2138.3,2138.1,0.6156]
[1741400241747,0.9356,2138.3,2138.1,1.55126]
[1741400242048,0.61771246,2138.4,2138.1,1.55126]
[1741400242254,0.93562,2138.2,2138.1,0.6156]
[1741400242449,0.61771246,2138.4,2138.0,1.54551]
[1741400242655,0.93564,2138.2,2138.0,1.54551]
[1741400243255,0.61771246,2138.4,2138.1,0.93567]
[1741400243256,0.9356,2138.3,2138.1,0.93567]
[1741400243552,0.61771246,2138.4,2138.1,0.93567]
[1741400243758,0.61771246,2138.4,2138.3,0.93558]
[1741400243759,0.00701246,2138.4,2138.3,0.93558]
[1741400244253,0.00701246,2138.4,2138.3,3.21658]
[1741400245557,3.2078,2138.9,2138.3,6.291]
[1741400245753,4.7952,2139.2,2138.9,0.93528]
[1741400245956,4.7952,2139.2,2139.0,0.6666]
[1741400246961,0.93523,2139.1,2139.0,0.6666]
[1741400248952,3.86,2139.2,2139.0,0.6666]
[1741400249152,3.86,2139.2,2139.1,0.93523]
[1741400249358,0.6062,2139.4,2139.1,0.93523]
[1741400249359,1.54133,2139.4,2139.1,0.93523]
[1741400249859,0.93516,2139.3,2139.1,0.93523]
[1741400250058,0.6062,2139.4,2138.9,0.00701246]
[1741400250256,0.93527,2139.0,2138.9,0.00701246]
[1741400253562,1.57637,2139.0,2138.9,0.00701246]
[1741400254861,0.6411,2139.0,2138.9,0.00701246]
[1741400255054,0.98722632,2139.1,2138.9,0.00701246]
[1741400255458,0.98722632,2139.1,2138.9,1.95101246]
[1741400255658,3.2078,2139.8,2139.0,4.61818]
[1741400255965,0.6482,2140.0,2139.4,3.2078]
[1741400256163,0.93494,2139.8,2139.5,0.93505]
[1741400256466,0.935,2139.7,2139.0,5.4878]
[1741400256763,3.2078,2139.8,2139.0,5.6578]
[1741400256764,0.93501,2139.6,2139.0,5.6578]
[1741400257353,2.28,2139.7,2139.5,0.93505]
[1741400257658,2.28,2139.7,2139.6,0.93501]
[1741400258059,2.28,2139.7,2139.5,0.93503]
[1741400258257,3.21498,2139.7,2139.4,0.93507]
[1741400258464,2.28,2139.7,2139.0,5.4878]
[1741400258656,2.28,2139.7,2139.5,0.93504]
[1741400258858,2.28,2139.7,2139.6,0.93501]
[1741400259057,2.279,2139.8,2139.6,0.93501]
[1741400259262,2.279,2139.8,2139.5,0.93503]
[1741400259461,2.279,2139.8,2139.5,0.93505]
[1741400259765,2.279,2139.8,2139.6,0.935]
[1741400259966,3.21394,2139.8,2139.5,0.93503]
[1741400260362,3.21394,2139.8,2139.6,0.93501]
[1741400260759,2.279,2139.8,2139.6,0.93501]
[1741400261057,2.279,2139.8,2139.7,0.93497]
[1741400262262,2.279,2139.8,2139.6,0.93499]
[1741400262466,3.21385,2140.0,2139.5,0.6479]
[1741400262668,3.21385,2140.0,2139.7,0.93494]
[1741400263367,2.279,2140.0,2139.5,0.6479]
[1741400263566,2.279,2140.0,2139.9,0.93488]
[1741400264269,2.279,2140.0,2139.5,0.6479]
[1741400264465,2.279,2140.0,2139.6,0.935]
[1741400264659,2.1896,2139.9,2139.6,0.935]
[1741400265672,2.1896,2139.9,2139.7,0.93497]
[1741400265871,2.1896,2139.9,2139.6,0.93498]
[1741400267073,1.2547,2139.9,2139.6,0.93498]
[1741400267273,0.6381,2139.9,2139.5,0.6479]
[1741400267473,2.279,2140.0,2139.5,0.7079]
[1741400267775,2.279,2140.0,2139.8,0.9349]
[1741400267970,2.279,2140.0,2139.5,0.6479]
[1741400268165,2.279,2140.0,2139.9,0.93488]
[1741400268371,2.279,2140.0,2139.5,0.6479]
[1741400268575,2.279,2140.0,2139.8,0.93489]
[1741400269475,0.9349,2139.9,2139.6,0.93497]
[1741400269676,2.279,2140.0,2139.6,0.93497]
[1741400269869,0.93495,2139.8,2139.5,1.58292]
[1741400270065,0.93495,2139.8,2139.5,1.64292]
[1741400270270,0.9349,2139.9,2139.6,0.93501]
[1741400270478,3.2078,2140.1,2139.6,5.57527]
[1741400270681,3.2078,2140.1,2140.0,0.93484]
[1741400271673,4.1426,2140.1,2139.6,3.2078]
[1741400271975,4.1426,2140.1,2139.9,0.93486]
[1741400274087,3.2078,2140.1,2140.0,0.93484]
[1741400275081,4.14261,2140.1,2139.6,3.2078]
[1741400275377,3.2078,2140.1,2139.7,0.93495]
[1741400275682,0.93485,2140.0,2139.8,0.93492]
[1741400275876,3.2078,2140.1,2139.7,0.93495]
[1741400276174,0.93492,2139.9,2139.7,0.93495]
[1741400276379,0.93487,2140.0,2139.7,0.93495]
[1741400276574,3.2078,2140.1,2139.7,0.93495]
[1741400276773,4.14263,2140.1,2139.8,0.93491]
[1741400277075,3.2078,2140.1,2139.8,0.93491]
[1741400277380,0.93484,2140.0,2139.7,0.93494]
[1741400277579,0.9349,2139.9,2139.7,0.93494]
[1741400278379,0.93496,2139.8,2139.5,1.58292]
[1741400278575,3.21192,2139.9,2139.5,0.7579]
[1741400278783,2.277,2139.9,2139.6,0.93498]
[1741400278981,3.2078,2139.8,2139.5,0.6479]
[1741400279183,3.8755,2139.8,2139.5,0.6479]
[1741400279383,3.8755,2139.8,2139.7,0.93497]
[1741400279783,3.8755,2139.8,2139.6,0.93498]
[1741400279984,3.8755,2139.8,2139.5,0.6479]
[1741400279985,0.6677,2139.8,2139.5,0.6479]
[1741400280279,0.6677,2139.8,2139.7,0.93497]
[1741400280877,1.60264,2139.8,2139.6,0.93501]
[1741400282074,0.6677,2139.8,2139.7,0.93497]
[1741400282281,3.2078,2140.1,2140.0,0.93484]
[1741400282480,2.277,2140.1,2140.0,0.93484]
[1741400283283,2.277,2140.1,2139.6,3.2078]
[1741400283489,2.277,2140.1,2140.0,0.93484]
[1741400283689,0.625,2140.2,2140.0,0.93484]
[1741400283888,6.41847,2140.4,2140.1,0.93475]
[1741400284086,1.2411,2140.5,2140.0,3.2078]
[1741400284389,2.17572,2140.5,2140.3,0.93469]
[1741400285487,1.2411,2140.5,2140.4,0.93466]
[1741400285790,4.45174,2140.5,2140.2,1.54192]
[1741400285983,4.45174,2140.5,2140.2,0.6072]
[1741400286185,3.5171,2140.5,2140.3,0.9347]
[1741400286385,1.2411,2140.5,2140.4,0.93466]
[1741400286584,1.2411,2140.5,2140.2,0.6072]
[1741400286585,3.2078,2140.7,2140.2,0.6072]
[1741400286780,5.4838,2140.7,2140.2,0.6072]
[1741400286990,6.41835,2140.7,2140.4,0.93464]
[1741400287290,0.6605,2140.6,2140.4,0.93464]
[1741400288287,0.6605,2140.6,2140.2,0.6072]
[1741400288288,3.2078,2141.1,2140.3,3.2078]
[1741400288482,0.93441,2141.0,2140.7,0.93449]
[1741400288685,0.93446,2140.9,2140.7,0.6246]
[1741400288890,0.6605,2140.9,2140.7,0.6246]
[1741400289096,0.6605,2140.9,2140.7,1.55911]
[1741400289287,1.59496,2140.9,2140.7,0.6246]
[1741400289790,0.6605,2140.9,2140.7,0.6246]
[1741400290181,0.6605,2140.9,2140.7,1.5591]
[1741400291596,0.6605,2140.9,2140.7,0.6246]
[1741400291794,0.93442,2141.0,2140.7,1.55911]
[1741400292285,0.9344,2141.0,2140.8,0.93449]
[1741400293090,0.6256,2141.3,2141.0,0.93438]
[1741400293091,0.93427,2141.3,2141.0,0.93438]
[1741400293293,0.93433,2141.2,2140.9,0.93443]
[1741400293488,4.488,2141.4,2140.8,1.2767]
[1741400293684,0.93427,2141.3,2140.9,0.93441]
[1741400293991,0.93427,2141.3,2141.0,0.9344]
[1741400294290,6.763,2141.4,2141.2,0.93429]
[1741400294487,6.763,2141.4,2140.8,1.2767]
[1741400294692,6.763,2141.4,2141.1,0.00701246]
[1741400294893,0.93434,2141.2,2141.1,0.00701246]
[1741400295194,0.93428,2141.3,2141.1,0.00701246]
[1741400296497,6.763,2141.4,2141.1,0.00701246]
[1741400296697,0.93431,2141.2,2141.1,0.00701246]
[1741400296886,0.93429,2141.3,2141.1,0.00701246]
[1741400297091,6.763,2141.4,2141.1,0.00701246]
[1741400297591,0.93428,2141.3,2141.1,0.94135246]
[1741400298096,6.763,2141.4,2141.2,0.93431]
[1741400298297,6.763,2141.4,2141.3,0.93427]
[1741400298607,7.69725,2141.4,2141.2,1.551]
[1741400298901,7.69725,2141.4,2141.2,0.6167]
[1741400299097,6.763,2141.4,2141.1,0.00701246]
[1741400299393,0.93431,2141.2,2141.1,0.00701246]
[1741400302594,0.93429,2141.3,2141.1,0.94135246]
[1741400302899,0.93431,2141.2,2141.1,0.00701246]
[1741400305799,6.763,2141.4,2141.1,0.94136246]
[1741400306003,0.93431,2141.2,2141.1,0.00701246]
[1741400306795,6.763,2141.4,2141.1,0.00701246]
[1741400306997,0.93428,2141.3,2141.1,0.94134246]
[1741400307190,0.93428,2141.3,2141.2,0.6534]
[1741400307597,0.93428,2141.3,2141.2,1.58771]
[1741400307797,0.93428,2141.3,2141.2,0.6534]
[1741400308505,6.763,2141.4,2141.2,0.6534]
[1741400308707,7.05975,2141.4,2141.3,0.93427]
[1741400309009,3.2078,2141.4,2141.3,0.93427]
[1741400309199,3.2078,2141.4,2141.3,1.59157]
[1741400310407,2.48852183,2141.4,2141.3,1.59157]
[1741400310904,2.48852183,2141.4,2141.3,0.6573]
[1741400311405,2.48852183,2141.4,2141.3,1.59157]
[1741400313709,0.93417,2141.6,2141.3,4.79937]
[1741400314208,0.93411,2141.7,2141.4,0.93418]
[1741400315305,0.93413,2141.7,2141.4,0.93418]
[1741400315508,0.93413,2141.7,2141.4,0.93419]
[1741400316005,5.4798,2141.8,2141.4,0.93419]
[1741400316210,0.93413,2141.7,2141.3,3.8651]
[1741400316416,0.93413,2141.7,2141.4,0.93419]
[1741400316603,0.93413,2141.7,2141.3,3.8651]
[1741400316806,0.93413,2141.7,2141.5,0.93417]
[1741400317713,0.93413,2141.7,2141.2,1.6792798]
[1741400317714,0.87462679,2141.7,2141.2,0.6534]
[1741400318009,0.93427,2141.4,2141.2,0.6534]
[1741400318207,0.93427,2141.3,2141.2,0.6534]
[1741400318408,2.18466,2141.4,2141.2,0.6534]
[1741400318600,5.4798,2141.8,2141.2,0.6534]
[1741400318805,0.93412,2141.7,2141.4,0.93418]
[1741400319008,0.93412,2141.7,2141.5,0.93418]
[1741400319215,5.4798,2141.8,2141.4,1.5584]
[1741400319414,0.93413,2141.7,2141.5,0.93418]
[1741400320016,0.93412,2141.7,2141.5,0.93418]
[1741400320917,5.4798,2141.8,2141.5,0.93418]
[1741400321218,0.93414,2141.7,2141.5,0.93418]
[1741400321520,0.93414,2141.6,2141.5,0.93418]
[1741400321817,0.93414,2141.6,2141.4,1.55839]
[1741400322419,5.4798,2141.8,2141.4,0.6242]
[1741400322617,0.93414,2141.6,2141.5,0.93418]
[1741400323025,0.93414,2141.6,2141.4,1.55839]
[1741400323313,5.4798,2141.8,2141.4,0.6242]
[1741400323314,0.93413,2141.7,2141.4,0.6242]
[1741400323614,0.93414,2141.7,2141.4,1.55839]
[1741400323817,0.93415,2141.6,2141.4,1.55839]
[1741400325322,0.93415,2141.6,2141.4,0.6242]
[1741400325722,0.93415,2141.6,2141.4,1.55842]
[1741400325923,3.2078,2141.8,2141.4,0.6242]
[1741400326124,6.3536146,2141.8,2141.4,1.55839]
[1741400326428,0.93413,2141.7,2141.5,0.93417]
[1741400327026,3.2078,2141.8,2141.4,3.832]
[1741400327224,0.93407,2141.8,2141.6,0.93413]
[1741400327812,3.5214,2141.9,2141.4,3.832]
[1741400328012,3.5214,2141.9,2141.7,0.93408]
[1741400328217,1.56351,2141.9,2141.8,0.6709]
[1741400329425,0.93398,2142.0,2141.8,1.60494]
[1741400329618,3.20498,2142.0,2141.8,1.60494]
[1741400329825,3.20498,2142.0,2141.8,0.6709]
[1741400330027,3.20498,2142.0,2141.8,1.60492]
[1741400330327,0.93401,2141.9,2141.8,0.6709]
[1741400331625,0.98599523,2142.0,2141.8,0.6709]
[1741400331828,0.93401,2141.9,2141.8,0.6709]
[1741400332826,3.2078,2141.9,2141.4,3.832]
[1741400333026,0.93414,2141.6,2141.5,0.93418]
[1741400333221,4.19379523,2141.9,2141.4,2.21921]
[1741400333421,0.93417,2141.6,2141.4,2.21921]
[1741400334323,3.2078,2141.9,2141.4,1.285]
[1741400334522,0.93418,2141.6,2141.4,1.285]
[1741400334825,0.93418,2141.5,2141.4,1.285]
[1741400335422,0.93428,2141.3,2141.1,4.14913246]
[1741400335730,0.93428,2141.3,2141.1,4.80303246]
[1741400336427,0.93431,2141.2,2141.1,3.86871246]
[1741400338517,0.93431,2141.2,2141.1,3.21481246]
[1741400338722,0.93431,2141.2,2141.1,0.00701246]
[1741400339729,3.20431,2141.2,2141.1,0.00701246]
[1741400339929,2.27,2141.2,2141.1,0.00701246]
[1741400340129,2.27,2141.2,2141.1,0.94137246]
[1741400340435,2.8953,2141.4,2141.1,0.00701246]
[1741400340626,0.93427,2141.3,2141.1,0.94135246]
[1741400341024,0.93431,2141.2,2141.1,0.00701246]
[1741400342519,1.58079,2141.3,2141.1,0.94137246]
[1741400342928,0.93431,2141.2,2141.1,0.00701246]
[1741400343827,4.14211,2141.2,2141.1,0.00701246]
[1741400344127,4.08364492,2141.2,2140.6,3.2078]
[1741400344331,0.93447,2140.9,2140.6,5.51035]
[1741400344522,5.07106233,2141.2,2140.6,5.51035]
[1741400344523,3.20342,2141.0,2140.8,0.93447]
[1741400344922,3.20342,2141.0,2140.6,4.5158]
[1741400345119,0.93446,2140.9,2140.6,5.51035]
[1741400345426,1.54096,2140.9,2140.7,0.93453]
[1741400345629,0.6065,2140.9,2140.6,4.52281246]
[1741400345821,0.00701246,2141.0,2140.9,0.93444]
[1741400346832,0.00701246,2141.0,2140.8,0.93445]
[1741400347429,0.00701246,2141.0,2140.9,0.93444]
[1741400348327,0.00701246,2141.0,2140.6,4.52281246]
[1741400348526,0.93446,2140.9,2140.7,0.93451]
[1741400349328,1.60096,2140.9,2140.6,4.52281246]
[1741400349534,0.6665,2140.9,2140.6,4.60281246]
[1741400349727,0.9345,2140.8,2140.6,5.53736246]
[1741400349929,0.6665,2140.9,2140.6,3.87351246]
[1741400349930,3.20353,2140.7,2140.6,3.87351246]
[1741400350129,3.20353,2140.7,2140.6,0.00701246]
[1741400350332,2.269,2140.7,2140.6,0.00701246]
[1741400350531,3.20353,2140.7,2140.6,0.00701246]
[1741400350733,3.86753,2140.7,2140.6,0.00701246]
[1741400351228,0.93466,2140.4,2140.3,3.2078]
[1741400351427,0.93458,2140.6,2140.4,0.93463]
[1741400352028,2.933,2140.7,2140.3,4.4789]
[1741400352331,3.2078,2140.9,2140.3,6.97561]
[1741400352536,2.99001246,2141.0,2140.6,3.2078]
[1741400352537,0.00701246,2141.0,2140.6,3.2078]
[1741400352835,0.00701246,2141.0,2140.7,1.9345]
[1741400353733,0.94142246,2141.0,2140.8,0.93445]
[1741400354038,0.94142246,2141.0,2140.7,2.869]
[1741400354436,0.00701246,2141.0,2140.7,1.9345]
[1741400354731,0.00701246,2141.0,2140.8,0.93446]
[1741400354934,0.00701246,2141.0,2140.7,1.9345]
[1741400355237,0.00701246,2141.0,2140.9,0.93444]
[1741400355429,0.00701246,2141.0,2140.8,0.93447]
[1741400355734,0.00701246,2141.0,2140.7,1.9345]
[1741400355934,0.00701246,2141.0,2140.9,0.93444]
[1741400356529,0.00701246,2141.0,2140.7,2.869]
[1741400356530,0.94143246,2141.0,2140.7,2.869]
[1741400357942,0.93445,2140.9,2140.7,2.869]
[1741400358237,0.00701246,2141.0,2140.7,1.9345]
[1741400358439,0.93449,2140.9,2140.7,2.869]
[1741400358639,0.93449,2140.9,2140.7,1.9345]
[1741400358935,1.56869,2140.9,2140.7,1.9345]
[1741400359837,0.6342,2140.9,2140.7,1.9345]
[1741400360032,0.93449,2140.8,2140.7,0.654]
[1741400360232,0.93453,2140.7,2140.6,3.2078]
[1741400360637,3.83701,2140.8,2140.6,4.14236]
[1741400360838,3.837,2140.8,2140.6,4.78185]
[1741400361039,3.837,2140.8,2140.7,0.93453]
[1741400361040,2.268,2140.8,2140.7,0.93453]
[1741400361431,3.20251,2140.8,2140.6,4.78186]
[1741400361628,2.268,2140.8,2140.7,0.93453]
[1741400362535,0.00701246,2141.0,2140.9,0.93444]
[1741400362737,2.27501246,2141.0,2140.9,0.93444]
[1741400363236,0.93446,2140.9,2140.6,4.78185]
[1741400363537,0.9345,2140.8,2140.6,4.78185]
[1741400363843,0.6209,2140.9,2140.6,3.8473]
[1741400364040,1.2469,2140.9,2140.6,3.2078]
[1741400364235,0.00701246,2141.0,2140.8,0.93444]
[1741400364443,0.94141246,2141.0,2140.9,1.3164]
[1741400364738,0.00701246,2141.0,2140.7,0.6325]
[1741400364942,1.56048,2140.9,2140.7,2.22731]
[1741400365243,0.626,2140.9,2140.7,1.2928]
[1741400365445,0.00701246,2141.0,2140.9,0.93444]
[1741400366741,0.00701246,2141.0,2140.8,0.93446]
[1741400366943,0.94141246,2141.0,2140.8,0.93446]
[1741400367434,0.94141246,2141.0,2140.7,1.2928]
[1741400367949,0.94141246,2141.0,2140.4,0.00701246]
[1741400367950,5.4758,2140.9,2140.4,0.00701246]
[1741400368241,0.93462,2140.5,2140.4,0.00701246]
[1741400368544,2.267,2140.8,2140.4,0.00701246]
[1741400368742,0.93462,2140.5,2140.4,0.00701246]
[1741400369736,4.0,2140.5,2140.0,0.6593]
[1741400369941,0.93485,2140.0,2139.8,1.2777]
[1741400370337,1.59228,2139.9,2139.8,0.6593]
[1741400371246,0.6574,2139.9,2139.8,0.6593]
[1741400371647,0.6574,2139.9,2139.8,1.59422]
[1741400371945,3.2078,2140.3,2140.1,0.93477]
[1741400372145,2.9021,2140.4,2139.9,3.2078]
[1741400372343,2.267,2140.4,2140.3,0.93471]
[1741400372649,3.20155,2140.7,2140.4,0.93464]
[1741400372841,2.267,2140.7,2140.5,0.6524]
[1741400373346,2.267,2140.7,2140.6,0.93457]
[1741400373547,2.267,2140.7,2140.6,1.56617]
[1741400374144,2.267,2140.7,2140.6,0.6316]
[1741400374342,2.267,2140.7,2140.6,1.56617]
[1741400374850,3.20153,2140.7,2140.6,0.6316]
[1741400375254,2.267,2140.7,2140.5,0.6524]
[1741400375954,2.267,2140.7,2140.5,1.58701]
[1741400375955,3.20155,2140.7,2140.5,1.58701]
[1741400376146,2.267,2140.7,2140.6,0.93457]
[1741400376343,2.267,2140.7,2140.5,1.58698]
[1741400376549,2.267,2140.7,2140.6,0.93457]
[1741400376853,0.00701246,2141.0,2140.8,0.93449]
[1741400376854,2.27401246,2141.0,2140.8,0.93449]
[1741400377052,2.27401246,2141.0,2140.9,0.6107]
[1741400377754,3.20841246,2141.0,2140.9,0.6107]
[1741400378248,2.27401246,2141.0,2140.9,0.6107]
[1741400378451,0.00701246,2141.0,2140.9,0.6107]
[1741400378651,0.93446,2140.9,2140.7,0.61771246]
[1741400378852,2.27401246,2141.0,2140.7,0.61771246]
[1741400379251,0.93447,2140.9,2140.7,0.61771246]
[1741400379448,2.27401246,2141.0,2140.7,0.61771246]
[1741400379656,0.93444,2140.9,2140.7,0.61771246]
[1741400379859,2.27401246,2141.0,2140.9,0.93444]
[1741400380052,3.20843246,2141.0,2140.7,0.61771246]
[1741400380248,3.20843246,2141.0,2140.7,1.55221246]
[1741400380456,0.93446,2140.9,2140.7,1.55221246]
[1741400381050,3.20844246,2141.0,2140.7,1.55221246]
[1741400381853,3.20844246,2141.0,2140.7,0.61771246]
[1741400382052,3.20844246,2141.0,2140.8,0.93448]
[1741400382356,3.20844246,2141.0,2140.9,0.93444]
[1741400382357,2.27401246,2141.0,2140.9,0.93444]
[1741400382756,3.20841246,2141.0,2140.8,1.57076]
[1741400384557,2.27401246,2141.0,2140.8,1.57076]
[1741400384945,3.20841246,2141.0,2140.8,1.57076]
[1741400385457,2.27401246,2141.0,2140.8,1.57076]
[1741400386254,0.93449,2140.8,2140.7,0.00701246]
[1741400387360,1.9208976,2140.8,2140.7,0.00701246]
[1741400388258,2.79594106,2140.8,2140.7,0.00701246]
[1741400388557,8.19775106,2140.8,2140.0,3.8224]
[1741400388760,3.2078,2140.5,2140.1,0.93477]
[1741400389063,3.84139,2140.4,2140.1,0.93477]
[1741400389261,3.84139,2140.4,2140.0,3.8224]
[1741400389560,3.84139,2140.4,2140.1,0.93477]
[1741400389763,3.8414,2140.4,2140.1,0.93477]
[1741400390663,2.9067,2140.4,2140.1,0.93477]
[1741400391060,2.9067,2140.4,2140.0,3.82941246]
[1741400391061,3.84138,2140.4,2140.2,0.93474]
[1741400391659,2.9067,2140.4,2140.2,0.93474]
[1741400392163,3.84137,2140.4,2140.2,0.93474]
[1741400392866,3.84137,2140.4,2140.0,3.82941246]
[1741400392867,2.266,2140.4,2140.3,0.93471]
[1741400393256,2.266,2140.4,2140.0,3.82941246]
[1741400393456,2.266,2140.4,2140.3,0.93471]
[1741400394253,2.266,2140.4,2140.2,0.93471]
[1741400394860,2.266,2140.4,2140.3,0.93471]
[1741400397963,2.266,2140.4,2140.0,3.82941246]
[1741400398171,2.266,2140.4,2140.0,3.89941246]
[1741400398569,2.266,2140.4,2140.3,0.93471]
[1741400400360,2.266,2140.4,2140.0,3.82941246]
[1741400400563,2.266,2140.4,2140.0,3.91941246]
[1741400400969,2.266,2140.4,2140.2,0.93471]
[1741400401271,2.266,2140.4,2140.3,0.93471]
[1741400402871,0.6646,2140.8,2140.7,0.93453]
[1741400403073,0.6646,2140.8,2140.3,3.56041399]
[1741400403265,0.6646,2140.8,2140.3,3.66041399]
[1741400403463,1.59911,2140.8,2140.4,0.6541]
[1741400403860,0.6646,2140.8,2140.4,0.6541]
[1741400404064,0.6646,2140.8,2140.6,0.93455]
[1741400404475,0.6266,2140.9,2140.4,0.6541]
[1741400404677,2.265,2140.9,2140.8,0.93449]
[1741400405674,2.265,2140.9,2140.8,1.57389]
[1741400406069,2.265,2140.9,2140.8,0.6394]
[1741400406271,3.19944,2140.9,2140.8,0.6394]
[1741400406666,2.265,2140.9,2140.3,3.56041399]
[1741400406872,1.58801,2140.8,2140.6,0.93456]
[1741400407374,0.6535,2140.8,2140.7,0.93453]
[1741400407575,2.265,2140.9,2140.4,1.9362]
[1741400407762,2.265,2140.9,2140.7,0.9345]
[1741400407969,2.265,2140.9,2140.8,0.6576]
[1741400409474,2.265,2140.9,2140.8,1.59209]
[1741400410771,3.19944,2140.9,2140.8,0.6576]
[1741400410972,2.265,2140.9,2140.4,1.2786]
[1741400411279,0.93457,2140.6,2140.4,0.6281]
[1741400411575,0.6099,2140.5,2140.4,0.6281]
[1741400411772,2.15342,2140.5,2140.4,0.6281]
[1741400412777,1.2188,2140.5,2140.4,0.6281]
[1741400412973,2.15342,2140.5,2140.1,1.2706]
[1741400413174,2.15342,2140.5,2140.3,0.9347]
[1741400413672,4.41742,2140.5,2140.3,0.9347]
[1741400414169,4.41742,2140.5,2140.2,1.54741]
[1741400414370,4.41742,2140.5,2140.2,0.6127]
[1741400414578,4.41742,2140.5,2140.3,0.9347]
[1741400415778,3.4828,2140.5,2140.4,0.93466]
[1741400415977,2.264,2140.5,2140.4,0.93466]